bitfinex-derivatives/quotes_ETHF0:USTF0_20250309
["timestamp","ask_amount","ask_price","bid_price","bid_amount"]
[1741556555596,0.98868,2023.1,2023.0,0.98868]
[1741556555795,0.98868,2023.1,2023.0,0.9887]
[1741556555796,0.98869,2023.1,2023.0,0.9887]
[1741556555991,2.4714,2023.3,2022.9,5.249]
[1741556556196,0.9887,2023.0,2022.9,6.23773]
[1741556556594,2.4714,2023.3,2022.9,5.249]
[1741556556895,0.9887,2023.1,2023.0,0.9887]
[1741556557791,0.9887,2023.0,2022.9,6.23772]
[1741556559195,0.9887,2023.0,2022.9,3.02992]
[1741556559490,0.9887,2023.0,2022.9,6.23772]
[1741556560195,0.9887,2023.0,2022.9,2.0412]
[1741556560389,3.21521491,2023.4,2022.6,3.2078]
[1741556560593,0.98905,2022.3,2022.2,0.99649491]
[1741556561396,0.98905,2022.3,2022.2,0.00741491]
[1741556562097,0.98903,2022.4,2022.2,0.99651491]
[1741556562490,5.68001,2022.7,2022.2,4.20429491]
[1741556562691,0.98905,2022.3,2022.2,4.20429491]
[1741556562891,3.2078,2022.7,2022.4,0.98897]
[1741556563087,4.19666,2022.7,2022.6,0.9889]
[1741556563297,3.2078,2022.7,2022.6,0.9889]
[1741556564492,4.19665,2022.7,2022.6,0.9889]
[1741556564889,0.98885,2022.7,2022.6,0.9889]
[1741556566098,0.98885,2022.7,2022.6,2.8985]
[1741556569199,3.2078,2023.0,2022.6,1.9096]
[1741556569498,0.98883,2022.8,2022.7,0.98883]
[1741556570502,0.98885,2022.7,2022.6,2.89848]
[1741556571302,0.98885,2022.7,2022.6,1.9096]
[1741556571502,0.98885,2022.7,2022.6,2.8985]
[1741556572302,0.98882,2022.8,2022.7,0.98882]
[1741556573197,0.98885,2022.7,2022.6,2.89847]
[1741556581107,0.98884,2022.8,2022.7,0.98884]
[1741556581606,0.98885,2022.7,2022.6,2.89847]
[1741556581905,0.98884,2022.8,2022.7,0.98885]
[1741556586208,0.98884,2022.8,2022.6,2.89846]
[1741556586409,0.98885,2022.7,2022.6,2.89846]
[1741556587606,3.2078,2024.2,2022.6,13.70742971]
[1741556587807,2.0199,2024.1,2023.6,3.2078]
[1741556588203,0.98824,2024.0,2023.6,3.2078]
[1741556588506,2.0199,2024.1,2023.6,3.2078]
[1741556588507,0.98833,2023.8,2023.6,3.2078]
[1741556588700,2.0199,2024.1,2023.7,0.98836]
[1741556588904,0.98833,2023.8,2023.6,4.20359491]
[1741556589207,2.0199,2024.1,2023.6,3.21521491]
[1741556589601,0.98823,2024.0,2023.8,0.98831]
[1741556590411,0.98823,2024.0,2023.9,0.98827]
[1741556590905,0.98823,2024.0,2023.7,1.8997]
[1741556591109,0.98823,2024.0,2023.8,0.98829]
[1741556592112,3.0081,2024.1,2023.9,0.98824]
[1741556592307,2.0199,2024.1,2023.9,0.98824]
[1741556592505,3.00811,2024.1,2023.9,0.98824]
[1741556592812,2.0199,2024.1,2023.9,0.98824]
[1741556593111,3.0081,2024.1,2023.9,0.98824]
[1741556593305,0.98822,2024.0,2023.9,0.98824]
[1741556593704,0.98822,2024.0,2023.7,1.8997]
[1741556594013,0.98826,2024.0,2023.8,0.98829]
[1741556596010,0.98827,2023.9,2023.8,0.98829]
[1741556597516,2.0199,2024.1,2023.8,0.98829]
[1741556597713,0.98824,2024.0,2023.8,0.98829]
[1741556598012,0.98824,2024.0,2023.9,0.98827]
[1741556598607,0.98824,2024.0,2023.8,0.98828]
[1741556600114,0.98824,2024.0,2023.9,0.98827]
[1741556600414,0.98824,2024.0,2023.8,0.98828]
[1741556600620,0.98827,2023.9,2023.8,0.98828]
[1741556604520,6.36791,2024.3,2023.7,1.8997]
[1741556604712,3.2078,2024.6,2023.8,2.411]
[1741556604918,6.0278,2025.0,2024.9,0.98778]
[1741556605117,0.9876,2025.3,2024.9,3.2078]
[1741556605313,9.2356,2025.4,2025.1,0.98767]
[1741556605515,9.2356,2025.4,2025.2,0.98763]
[1741556605516,10.22316,2025.4,2025.2,0.98763]
[1741556605715,10.22316,2025.4,2024.9,3.2078]
[1741556605716,3.2078,2025.4,2024.9,3.2078]
[1741556605913,22.48883878,2025.6,2025.5,0.98748]
[1741556606109,4.19493,2026.3,2025.5,6.46872]
[1741556606312,0.98715,2026.2,2026.0,3.2078]
[1741556606722,0.98715,2026.2,2025.9,0.99468491]
[1741556607316,0.98715,2026.2,2026.0,3.2078]
[1741556608017,0.98719,2026.1,2026.0,3.2078]
[1741556609015,3.2078,2026.3,2026.0,3.2078]
[1741556609221,4.3388591,2026.7,2026.0,3.2078]
[1741556609417,6.7488591,2027.1,2026.5,0.98696]
[1741556609720,3.39673,2027.1,2026.3,3.2078]
[1741556609922,2.41,2027.1,2026.3,3.2078]
[1741556610131,0.98687,2026.8,2026.3,4.19486]
[1741556610520,2.41,2027.1,2026.3,3.2078]
[1741556610826,2.41,2027.1,2026.3,4.19488]
[1741556610827,0.98691,2026.7,2026.3,4.19488]
[1741556611717,0.98692,2026.7,2026.4,0.98704]
[1741556611917,3.2078,2027.0,2026.3,4.19486]
[1741556612117,3.2078,2026.7,2025.9,3.21521491]
[1741556612318,0.9872,2026.1,2025.9,0.00741491]
[1741556614228,0.9872,2026.1,2025.9,3.21521491]
[1741556614828,0.9872,2026.1,2025.9,4.20248491]
[1741556615130,0.98718,2026.2,2025.9,4.20247491]
[1741556615324,0.98719,2026.1,2025.9,4.20247491]
[1741556616126,0.98712,2026.3,2026.0,0.98722]
[1741556616323,0.98707,2026.4,2025.9,3.21521491]
[1741556617229,0.98707,2026.4,2026.1,0.98716]
[1741556617425,0.98707,2026.4,2025.9,3.21521491]
[1741556617931,0.98707,2026.4,2026.2,0.98714]
[1741556618832,7.5466591,2026.7,2026.2,3.2078]
[1741556619031,0.98681,2026.9,2026.5,3.2078]
[1741556619228,4.19457,2027.0,2026.8,0.98684]
[1741556619428,0.98675,2027.1,2026.8,0.98682]
[1741556619746,0.98676,2027.0,2026.8,0.98682]
[1741556620838,0.98676,2027.0,2026.8,4.19462]
[1741556621827,0.98697,2026.6,2026.5,3.2078]
[1741556622432,2.46717,2026.8,2026.3,0.98708]
[1741556622636,0.98705,2026.4,2026.2,0.9871]
[1741556622933,2.46717,2026.8,2026.1,3.2078]
[1741556623129,0.98703,2026.5,2026.3,0.98709]
[1741556623334,2.46717,2026.8,2026.3,0.98709]
[1741556623536,0.98705,2026.4,2026.3,0.98709]
[1741556623723,0.98705,2026.4,2026.2,0.98711]
[1741556624128,0.98714,2026.2,2026.1,3.2078]
[1741556625035,0.98714,2026.2,2026.1,4.19499]
[1741556625337,0.98712,2026.3,2026.1,4.19499]
[1741556625530,2.46738,2026.6,2026.1,4.19499]
[1741556625736,0.98714,2026.2,2026.1,4.19499]
[1741556625932,0.98714,2026.2,2026.1,3.2078]
[1741556627635,0.98707,2026.4,2026.1,3.2078]
[1741556627937,0.98699,2026.6,2026.4,0.98703]
[1741556628345,0.987,2026.5,2026.4,0.98703]
[1741556628640,0.987,2026.5,2026.3,0.98707]
[1741556628839,0.987,2026.5,2026.4,0.98705]
[1741556629040,0.98702,2026.5,2026.1,3.2078]
[1741556629337,0.98702,2026.5,2026.3,0.98706]
[1741556629936,2.9108591,2027.6,2026.4,6.1568]
[1741556630136,1.428,2027.9,2027.1,3.2078]
[1741556630336,4.3388591,2028.0,2027.4,3.2078]
[1741556630537,3.2078,2027.9,2027.3,0.00741491]
[1741556630737,3.2078,2027.9,2027.5,0.98651]
[1741556630936,0.98651,2027.6,2027.4,3.2078]
[1741556631838,0.98651,2027.5,2027.4,3.2078]
[1741556633028,0.9864,2027.8,2027.4,3.2078]
[1741556633231,0.9864,2027.8,2027.6,0.98645]
[1741556633538,0.98642,2027.7,2027.5,0.98647]
[1741556633844,0.9864,2027.8,2027.5,0.98651]
[1741556634740,2.46555,2028.1,2027.5,0.98651]
[1741556635034,2.406,2028.2,2027.4,3.2078]
[1741556635236,0.98637,2027.8,2027.6,0.98644]
[1741556635435,4.87147,2028.2,2027.4,3.2078]
[1741556635640,0.98648,2027.6,2027.4,4.19434]
[1741556635847,0.98651,2027.5,2027.4,3.2078]
[1741556636545,0.9865,2027.6,2027.4,4.19434]
[1741556637143,0.98651,2027.5,2027.4,3.2078]
[1741556638440,2.46585,2027.9,2027.4,4.19432]
[1741556638640,0.98651,2027.5,2027.4,3.2078]
[1741556639145,2.46558,2028.1,2027.4,3.2078]
[1741556639445,0.98651,2027.5,2027.4,4.19433]
[1741556639645,2.4658,2027.9,2027.4,3.2078]
[1741556639945,2.4658,2027.9,2027.4,4.19432]
[1741556640140,2.4658,2027.9,2027.4,3.2078]
[1741556640341,0.98651,2027.5,2027.4,0.98652]
[1741556640638,2.46592,2027.8,2027.3,0.00741491]
[1741556640838,5.6736,2027.9,2027.3,0.00741491]
[1741556641040,0.98649,2027.6,2027.5,3.2078]
[1741556641243,0.98656,2027.4,2027.3,0.00741491]
[1741556643044,0.98674,2027.1,2026.9,0.98679]
[1741556643244,3.2078,2027.3,2026.8,3.2078]
[1741556643442,0.98667,2027.2,2027.0,0.98672]
[1741556643646,0.98672,2027.1,2026.9,0.98677]
[1741556643844,3.2078,2027.3,2026.8,3.2078]
[1741556644048,3.2078,2027.3,2027.2,0.98666]
[1741556644243,3.21521491,2027.3,2026.9,2.46701]
[1741556644548,4.20186491,2027.3,2027.1,0.98669]
[1741556644843,0.98667,2027.2,2026.8,3.21521491]
[1741556645040,0.98667,2027.2,2027.0,0.98672]
[1741556645441,0.98677,2027.0,2026.8,4.20202491]
[1741556645638,0.98677,2027.0,2026.8,3.21521491]
[1741556645848,0.98677,2027.0,2026.8,4.20201491]
[1741556646349,0.98677,2027.0,2026.9,0.9868]
[1741556646742,0.9868,2026.9,2026.8,0.00741491]
[1741556647135,0.98678,2027.0,2026.9,0.9868]
[1741556647341,5.68177491,2027.3,2026.8,0.00741491]
[1741556647645,0.9868,2026.9,2026.8,0.99426491]
[1741556672957,0.98674,2027.1,2026.8,0.00741491]
[1741556673255,0.00741491,2027.3,2027.2,0.98666]
[1741556674057,3.2078,2027.5,2027.4,0.98656]
[1741556677766,0.98646,2027.7,2027.5,0.98647]
[1741556677970,0.98646,2027.7,2027.6,0.98646]
[1741556682470,0.98647,2027.6,2027.5,0.98648]
[1741556683371,0.98651,2027.5,2027.4,3.2078]
[1741556684172,0.98666,2027.2,2027.1,11.67428]
[1741556684465,0.98666,2027.2,2027.1,8.46648]
[1741556685667,0.98666,2027.2,2027.1,5.51748]
[1741556686171,2.46641,2027.4,2027.0,0.98673]
[1741556686466,0.98674,2027.1,2026.9,0.9868]
[1741556686962,0.98674,2027.1,2026.8,7.60621491]
[1741556687168,4.1618,2027.4,2026.8,7.60621491]
[1741556687867,0.98672,2027.1,2027.0,0.98671]
[1741556689171,4.1618,2027.4,2026.8,7.60621491]
[1741556689368,0.98668,2027.2,2027.1,0.98668]
[1741556689868,0.98673,2027.1,2027.0,0.98673]
[1741556690172,0.98672,2027.1,2027.0,0.98671]
[1741556695179,0.98677,2027.0,2026.9,0.98676]
[1741556695776,1.39957131,2027.0,2026.9,0.98676]
[1741556695978,0.41280131,2027.0,2026.9,0.98676]
[1741556696371,1.39955131,2027.0,2026.9,0.98676]
[1741556699180,0.41280131,2027.0,2026.9,0.98676]
[1741556699781,1.39955131,2027.0,2026.9,0.98676]
[1741556700777,3.2078,2027.6,2027.5,0.98651]
[1741556700978,0.98637,2027.8,2027.7,0.98639]
[1741556701284,0.98639,2027.8,2027.6,0.98643]
[1741556701583,0.98643,2027.7,2027.6,0.98645]
[1741556702170,3.2078,2027.9,2027.7,0.98638]
[1741556702171,0.98638,2027.8,2027.7,0.98638]
[1741556702479,3.2078,2027.9,2027.4,7.67574]
[1741556702779,3.2078,2027.9,2027.8,0.98636]
[1741556705679,0.98637,2027.8,2027.7,0.98639]
[1741556706975,3.2078,2027.9,2027.4,7.67574]
[1741556707180,0.98637,2027.8,2027.7,0.98638]
[1741556707381,3.2078,2027.9,2027.7,0.98638]
[1741556707583,0.98643,2027.7,2027.6,0.98644]
[1741556707779,5.67362,2027.9,2027.4,5.2094]
[1741556707971,0.98651,2027.5,2027.4,3.2078]
[1741556708174,0.98661,2027.3,2027.2,3.01173]
[1741556708383,3.2078,2027.6,2027.1,2.0819]
[1741556708584,0.98666,2027.2,2027.1,2.0819]
[1741556709975,3.2078,2027.6,2027.1,2.0819]
[1741556710181,3.2078,2027.6,2027.2,0.98664]
[1741556710487,0.98666,2027.2,2027.1,2.0819]
[1741556710983,5.67401,2027.6,2027.1,2.0819]
[1741556711191,0.98647,2027.6,2027.4,0.98652]
[1741556711392,1.9544,2027.8,2027.1,2.0819]
[1741556711579,1.9544,2027.8,2027.3,0.98658]
[1741556712483,1.9544,2027.8,2027.1,2.0819]
[1741556712484,0.98653,2027.5,2027.1,2.0819]
[1741556712685,0.98653,2027.5,2027.3,0.98657]
[1741556712990,0.40677612,2027.4,2027.3,0.98657]
[1741556713691,1.39333612,2027.4,2027.3,0.98657]
[1741556713891,0.40677612,2027.4,2027.3,0.98657]
[1741556714486,1.39333612,2027.4,2027.3,0.98657]
[1741556716290,0.40677612,2027.4,2027.3,0.98657]
[1741556716494,1.39333612,2027.4,2027.3,0.98657]
[1741556716892,1.39333612,2027.4,2027.1,2.0819]
[1741556716893,1.39333612,2027.4,2027.2,0.98662]
[1741556717094,1.39333612,2027.4,2027.1,2.0819]
[1741556717293,1.39333612,2027.4,2027.3,0.98661]
[1741556717996,0.40677612,2027.4,2027.1,2.0819]
[1741556718197,0.9866,2027.4,2027.1,2.0819]
[1741556718400,0.9866,2027.4,2027.3,0.98661]
[1741556718891,2.46609,2027.7,2027.1,2.0819]
[1741556719089,0.98661,2027.3,2027.2,0.98662]
[1741556720089,2.46609,2027.7,2027.1,2.0819]
[1741556720294,2.46609,2027.7,2027.2,0.98661]
[1741556720494,0.98666,2027.2,2027.1,3.06858]
[1741556720901,4.55448,2027.6,2027.1,3.06857]
[1741556721090,7.76228,2027.6,2027.1,3.06857]
[1741556721496,0.39807561,2027.5,2027.1,3.06857]
[1741556722093,0.39807561,2027.4,2027.1,2.0819]
[1741556722291,0.98666,2027.2,2027.1,3.06857]
[1741556723596,0.98665,2027.3,2027.2,0.98664]
[1741556723897,0.98663,2027.3,2027.2,0.98664]
[1741556724298,0.98666,2027.2,2027.1,3.06857]
[1741556727308,9.71208,2027.6,2027.1,2.0819]
[1741556727601,0.98664,2027.3,2027.2,0.98664]
[1741556729497,7.2459,2027.6,2027.1,2.0819]
[1741556729798,1.38515484,2027.5,2027.4,0.98654]
[1741556730300,0.98656,2027.4,2027.3,0.98657]
[1741556730704,1.38518484,2027.4,2027.3,0.98657]
[1741556731507,0.39862484,2027.4,2027.3,0.98657]
[1741556731708,0.98662,2027.3,2027.2,0.98664]
[1741556732109,1.38520484,2027.4,2027.1,2.0819]
[1741556732309,0.39862484,2027.4,2027.1,2.0819]
[1741556732506,0.98652,2027.5,2027.2,0.98666]
[1741556732809,0.98657,2027.4,2027.2,0.98662]
[1741556733305,0.98657,2027.4,2027.3,0.98661]
[1741556734108,0.98655,2027.5,2027.3,0.98661]
[1741556734408,0.98655,2027.5,2027.1,2.0819]
[1741556734612,3.2078,2027.7,2027.4,0.98656]
[1741556734910,0.98651,2027.5,2027.4,0.98656]
[1741556735507,0.98651,2027.5,2027.1,2.0819]
[1741556735713,0.98651,2027.5,2027.3,0.98657]
[1741556737520,3.2078,2027.7,2027.3,0.98657]
[1741556737521,0.98656,2027.4,2027.3,0.98657]
[1741556740714,0.98656,2027.4,2027.2,0.98662]
[1741556741113,0.98656,2027.4,2027.1,2.0819]
[1741556741420,0.98656,2027.4,2027.3,0.98661]
[1741556742906,3.2078,2027.7,2027.4,0.98651]
[1741556743111,0.9865,2027.6,2027.4,0.98651]
[1741556743311,0.98651,2027.5,2027.4,0.98651]
[1741556744120,0.9865,2027.6,2027.4,0.98651]
[1741556744521,0.98651,2027.5,2027.3,1.973]
[1741556744822,0.98651,2027.5,2027.3,2.95957]
[1741556745120,3.2078,2027.7,2027.3,2.95957]
[1741556745321,0.98653,2027.5,2027.3,2.95957]
[1741556746221,0.9865,2027.6,2027.4,0.98656]
[1741556746624,3.825,2028.0,2027.4,0.98656]
[1741556746625,4.6358,2028.0,2027.9,0.98632]
[1741556746819,5.62207,2028.0,2027.9,0.98632]
[1741556747116,0.98618,2028.2,2028.1,0.98619]
[1741556747322,0.98618,2028.2,2027.8,2.46589]
[1741556747323,3.2078,2028.3,2027.9,3.2078]
[1741556747524,0.98615,2028.3,2028.1,0.98618]
[1741556748322,0.98615,2028.3,2027.9,5.2053959]
[1741556748521,0.98615,2028.3,2028.1,0.98617]
[1741556748722,0.98615,2028.3,2027.9,5.2053959]
[1741556749119,0.9861,2028.4,2027.9,7.6711659]
[1741556749318,6.2075,2028.5,2028.1,0.98618]
[1741556749526,6.2075,2028.5,2027.9,5.2053959]
[1741556749527,0.98615,2028.3,2027.9,5.2053959]
[1741556749717,0.98615,2028.3,2028.2,0.98617]
[1741556749918,6.2075,2028.5,2028.1,0.98618]
[1741556750124,6.2075,2028.5,2028.2,0.98613]
[1741556750325,0.98612,2028.3,2028.2,0.98613]
[1741556751930,0.98611,2028.4,2028.3,0.98608]
[1741556752131,0.98613,2028.3,2028.2,0.98614]
[1741556753524,0.98626,2028.1,2028.0,0.98627]
[1741556753725,0.98625,2028.1,2028.0,0.98625]
[1741556754120,2.46531,2028.3,2027.9,0.9936659]
[1741556754326,6.2075,2028.5,2027.9,0.0073959]
[1741556754618,0.98624,2028.1,2028.0,0.98625]
[1741556755029,6.2075,2028.5,2027.9,0.0073959]
[1741556755330,0.98618,2028.2,2028.1,0.98618]
[1741556756128,6.2075,2028.5,2027.9,2.4731659]
[1741556756333,0.98615,2028.3,2028.2,0.98616]
[1741556757128,0.98616,2028.3,2028.2,0.98615]
[1741556758525,4.118,2028.5,2027.9,2.4731859]
[1741556758834,0.98616,2028.3,2028.2,0.98615]
[1741556761034,0.98616,2028.3,2027.9,2.4731859]
[1741556761235,0.98616,2028.3,2028.1,0.98618]
[1741556762536,0.98616,2028.3,2028.2,2.2282]
[1741556763038,0.98616,2028.3,2028.2,3.21437]
[1741556763838,0.98616,2028.3,2028.2,0.98617]
[1741556768641,0.98604,2028.5,2028.4,0.98604]
[1741556768837,0.98609,2028.4,2028.3,0.98609]
[1741556769035,3.2078,2028.6,2028.2,2.0805]
[1741556769340,2.46485,2028.7,2028.2,2.0805]
[1741556769540,0.98607,2028.5,2028.2,2.0805]
[1741556769852,0.98607,2028.5,2028.4,0.98607]
[1741556770032,0.98604,2028.5,2028.4,0.98605]
[1741556770549,9.75833,2028.9,2028.5,0.98599]
[1741556770550,0.98601,2028.6,2028.5,0.98599]
[1741556770843,0.98601,2028.6,2028.3,3.2078]
[1741556770844,0.98604,2028.5,2028.4,0.98604]
[1741556771644,2.46472,2028.8,2028.3,3.2078]
[1741556771947,0.98607,2028.5,2028.4,0.98605]
[1741556772133,0.9861,2028.4,2028.3,0.98609]
[1741556773448,0.98612,2028.3,2028.2,5.45963]
[1741556773838,3.2078,2028.6,2028.2,4.4735]
[1741556774038,3.2078,2028.6,2028.4,0.98604]
[1741556774039,0.98605,2028.5,2028.4,0.98604]
[1741556774236,3.2078,2028.6,2028.4,0.98604]
[1741556774435,9.75832,2028.9,2028.4,0.98604]
[1741556774640,0.98602,2028.5,2028.4,0.98604]
[1741556775053,0.98606,2028.5,2028.4,0.98606]
[1741556776448,0.98602,2028.6,2028.5,0.98601]
[1741556777151,0.98596,2028.7,2028.6,0.98595]
[1741556777654,0.986,2028.6,2028.5,0.986]
[1741556780147,0.98599,2028.6,2028.5,0.98599]
[1741556780549,0.98594,2028.7,2028.6,0.98593]
[1741556780753,5.283,2028.9,2028.6,0.98593]
[1741556780754,5.283,2028.9,2028.6,0.98596]
[1741556780955,0.98596,2028.7,2028.6,0.98596]
[1741556781453,0.98599,2028.6,2028.5,0.986]
[1741556782157,0.98596,2028.7,2028.6,0.98596]
[1741556782455,0.98596,2028.7,2028.5,0.98598]
[1741556782944,0.98596,2028.7,2028.6,0.98598]
[1741556785156,0.98589,2028.8,2028.7,0.9859]
[1741556786158,6.26884,2028.9,2028.8,0.98588]
[1741556786658,0.98593,2028.7,2028.6,3.12874]
[1741556787362,0.98589,2028.8,2028.7,0.9859]
[1741556787756,5.283,2028.9,2028.6,2.1428]
[1741556787955,5.283,2028.9,2028.8,0.98588]
[1741556787956,6.26886,2028.9,2028.8,0.98588]
[1741556788557,3.06106,2028.9,2028.8,0.98588]
[1741556789159,0.98581,2029.0,2028.9,0.98581]
[1741556790757,7.3526,2029.2,2028.6,5.3506]
[1741556790961,0.98582,2029.0,2028.8,0.98583]
[1741556791162,0.98582,2029.0,2028.9,3.02643]
[1741556791856,0.98582,2029.0,2028.9,2.0406]
[1741556792258,0.98582,2029.0,2028.9,3.02643]
[1741556792763,0.98582,2029.0,2028.9,2.0406]
[1741556795968,0.98582,2029.0,2028.9,3.02643]
[1741556797464,3.2078,2029.2,2028.9,2.0406]
[1741556797664,3.2078,2029.2,2029.1,0.98573]
[1741556798067,5.3412,2029.6,2029.0,6.5184]
[1741556798262,0.98555,2029.5,2029.4,0.98555]
[1741556799170,2.1334,2029.6,2029.3,2.1411]
[1741556799366,0.98554,2029.5,2029.4,0.98555]
[1741556799567,2.1334,2029.6,2029.3,2.1411]
[1741556799775,0.98556,2029.5,2029.4,0.98558]
[1741556799970,7.3072,2029.9,2029.4,2.1097]
[1741556800171,0.98549,2029.6,2029.5,4.19332]
[1741556800372,0.98549,2029.6,2029.5,3.2078]
[1741556800982,0.98549,2029.6,2029.5,4.19334]
[1741556801176,0.98546,2029.7,2029.5,4.1933]
[1741556801369,0.98549,2029.6,2029.5,4.19334]
[1741556802575,0.98549,2029.7,2029.6,0.98549]
[1741556802777,0.98549,2029.7,2029.5,4.1933]
[1741556802982,9.3433,2029.9,2029.5,3.2078]
[1741556803281,9.3433,2029.9,2029.5,4.1933]
[1741556803672,0.98549,2029.6,2029.5,3.2078]
[1741556804577,0.98549,2029.6,2029.5,4.19334]
[1741556805582,0.98549,2029.6,2029.5,3.2078]
[1741556805772,0.98549,2029.6,2029.5,4.19334]
[1741556806977,9.3433,2029.9,2029.5,3.2078]
[1741556807177,4.1023,2029.9,2029.5,3.2078]
[1741556807383,0.98541,2029.8,2029.7,0.98542]
[1741556808089,1.9959,2030.1,2029.5,5.67163]
[1741556808380,0.98537,2029.9,2029.8,0.98538]
[1741556808580,1.9959,2030.1,2029.5,3.2078]
[1741556808983,0.98538,2029.9,2029.8,0.98539]
[1741556809480,0.98534,2029.9,2029.8,0.98539]
[1741556810077,5.3384,2030.2,2029.8,3.2078]
[1741556810383,7.80145,2030.2,2029.8,4.19315]
[1741556810682,3.2078,2030.2,2029.8,3.2078]
[1741556810877,3.2078,2030.2,2029.9,6.2522]
[1741556811074,0.98529,2030.1,2029.9,7.2375]
[1741556811283,3.2078,2030.2,2029.9,7.2375]
[1741556811485,0.9853,2030.0,2029.9,4.2227]
[1741556811681,4.19303,2030.2,2029.9,4.2227]
[1741556811987,0.9852,2030.2,2030.1,3.2078]
[1741556812189,2.0749,2030.6,2030.1,3.2078]
[1741556812479,0.98512,2030.4,2030.2,0.98516]
[1741556812675,0.98512,2030.4,2030.3,0.98515]
[1741556812877,0.98512,2030.4,2030.2,0.98517]
[1741556813076,3.2078,2030.8,2030.3,2.0043]
[1741556813286,0.98508,2030.5,2030.3,2.98943]
[1741556813487,0.9851,2030.4,2030.3,5.16113]
[1741556814087,0.9851,2030.4,2030.3,4.176]
[1741556817791,0.9851,2030.4,2030.3,2.0043]
[1741556818087,0.9851,2030.4,2030.3,4.0287]
[1741556818286,7.09778,2031.1,2030.3,8.0287]
[1741556818489,0.98496,2030.7,2030.6,3.2078]
[1741556818792,7.09778,2031.1,2030.4,2.0169]
[1741556818987,0.98497,2030.7,2030.5,0.98502]
[1741556819188,0.98494,2030.8,2030.6,4.1928]
[1741556819489,0.98494,2030.8,2030.7,1.9998]
[1741556820283,0.98488,2030.9,2030.7,2.98474]
[1741556820483,0.98491,2030.8,2030.7,1.9998]
[1741556820687,0.98489,2030.9,2030.7,2.98474]
[1741556820887,0.98491,2030.8,2030.7,1.9998]
[1741556821696,2.46203,2031.0,2030.3,5.2322]
[1741556821992,0.98505,2030.5,2030.4,2.1238]
[1741556824091,0.98505,2030.5,2030.3,6.21732]
[1741556824396,0.9851,2030.4,2030.3,3.2078]
[1741556824588,2.946,2030.4,2030.3,3.2078]
[1741556826994,1.9609,2030.4,2030.3,3.2078]
[1741556827195,1.9609,2030.4,2030.3,4.19295]
[1741556827596,2.946,2030.4,2030.3,3.2078]
[1741556834999,2.46209,2031.0,2030.3,3.2078]
[1741556835297,0.98507,2030.5,2030.3,4.19292]
[1741556835601,0.9851,2030.4,2030.3,3.2078]
[1741556837894,4.1954,2030.6,2030.3,3.2078]
[1741556838091,0.98508,2030.5,2030.3,4.19292]
[1741556838295,3.2078,2030.9,2030.4,2.1231]
[1741556838502,0.98495,2030.8,2030.6,4.19278]
[1741556838697,0.98493,2030.8,2030.6,4.19278]
[1741556839093,0.98496,2030.7,2030.6,3.2078]
[1741556839487,0.98493,2030.8,2030.6,4.1928]
[1741556839794,0.98496,2030.7,2030.6,3.2078]
[1741556839999,0.98493,2030.8,2030.6,4.19279]
[1741556840201,2.0762,2031.0,2030.6,3.2078]
[1741556840398,0.98488,2030.9,2030.7,0.98494]
[1741556840800,0.98488,2030.9,2030.8,2.0828]
[1741556841895,0.98496,2030.7,2030.6,3.2078]
[1741556842199,0.98496,2030.8,2030.6,3.2078]
[1741556842398,0.98496,2030.7,2030.6,3.2078]
[1741556843900,6.74586,2031.2,2030.6,3.2078]
[1741556844103,6.74586,2031.2,2030.6,4.19277]
[1741556844304,0.98495,2030.8,2030.6,4.19277]
[1741556844904,0.98495,2030.8,2030.6,3.2078]
[1741556845103,0.98489,2030.9,2030.7,0.98493]
[1741556845398,2.46171,2031.3,2030.6,3.2078]
[1741556845599,3.2078,2031.7,2031.2,3.2078]
[1741556845801,3.2078,2031.7,2031.3,4.2185]
[1741556846006,10.2386591,2032.0,2031.5,3.2078]
[1741556846207,3.2078,2032.0,2031.7,0.98443]
[1741556846400,0.98442,2031.9,2031.7,0.98445]
[1741556846605,3.2078,2032.0,2031.7,0.98445]
[1741556846801,4.19216,2032.0,2031.8,2.0615]
[1741556847806,0.98437,2031.9,2031.8,5.2693]
[1741556848615,0.98437,2031.9,2031.8,2.0615]
[1741556849711,0.98448,2031.7,2031.5,4.19234]
[1741556849911,0.98448,2031.7,2031.5,6.22404]
[1741556850512,0.98444,2031.8,2031.6,0.98449]
[1741556850811,2.4607,2032.1,2031.5,6.22405]
[1741556851010,0.98452,2031.6,2031.5,5.2395]
[1741556852017,2.1505,2031.9,2031.5,5.2395]
[1741556852311,4.2379,2031.9,2031.5,5.2395]
[1741556852518,0.98452,2031.6,2031.5,6.22405]
[1741556852715,0.98452,2031.6,2031.5,6.22407]
[1741556853020,0.98452,2031.6,2031.5,5.2395]
[1741556855427,0.98452,2031.6,2031.5,3.2078]
[1741556855631,0.98462,2031.4,2031.3,4.1589]
[1741556855922,0.98466,2031.3,2031.2,0.0073959]
[1741556857031,2.46193,2031.1,2030.6,2.0019]
[1741556857231,0.98496,2030.7,2030.6,2.0019]
[1741556861429,0.985,2030.6,2030.5,3.2078]
[1741556861624,5.0683,2030.6,2030.5,3.2078]
[1741556863128,0.98505,2030.5,2030.4,0.0073959]
[1741556863631,0.98515,2030.3,2030.2,3.2078]
[1741556868027,0.98525,2030.1,2030.0,0.0073959]
[1741556869625,0.98525,2030.1,2030.0,3.2151959]
[1741556873833,3.04465,2030.1,2030.0,3.2151959]
[1741556874033,5.02055,2030.1,2030.0,3.2151959]
[1741556875630,7.40155,2030.1,2030.0,0.0073959]
[1741556875831,0.98539,2029.8,2029.7,5.237]